fUSD/lending_fUSD_20240616
["ID","MTS","AMOUNT","RATE_DAILY","PERIOD"]
[329635537,1718519494147,-519.58,0.00023561,3]
[329635538,1718519494177,-500.0,0.00023561,3]
[329635539,1718519494223,-500.0,0.00023561,3]
[329635540,1718519494242,-500.0,0.00023561,3]
[329635541,1718519494266,-500.0,0.00023561,3]
[329635542,1718519494283,-500.0,0.00023561,3]
[329635543,1718519494317,-500.0,0.00023561,3]
[329635544,1718519494343,-274.28088755,0.00023561,3]
[329635545,1718519494356,-500.0,0.00023561,3]
[329635546,1718519494370,-500.0,0.00023561,3]
[329635547,1718519494387,-500.0,0.00023561,3]
[329635548,1718519494425,-479.17290149,0.00023561,3]
[329635549,1718519494438,-500.0,0.00023561,3]
[329635550,1718519494454,-500.0,0.00023561,3]
[329635551,1718519494469,-500.0,0.00023561,3]
[329635552,1718519494482,-500.0,0.00023561,3]
[329635553,1718519494502,-521.4,0.00023561,3]
[329635554,1718519494514,-500.0,0.00023561,3]
[329635555,1718519494529,-500.0,0.00023561,3]
[329635556,1718519494553,-500.0,0.00023561,3]
[329635557,1718519494566,-881.45,0.00023561,3]
[329635558,1718519494579,-500.0,0.00023561,3]
[329635559,1718519494598,-500.0,0.00023561,3]
[329635560,1718519494623,-500.0,0.00023561,3]
[329635561,1718519494649,-500.0,0.00023561,3]
[329635562,1718519494661,-500.0,0.00023561,3]
[329635563,1718519494676,-500.0,0.00023561,3]
[329635564,1718519494706,-517.49,0.00023561,3]
[329635565,1718519494720,-500.0,0.00023561,3]
[329635566,1718519494733,-517.12,0.00023561,3]
[329635567,1718519494746,-500.0,0.00023561,3]
[329635568,1718519494786,-500.0,0.00023561,3]
[329635569,1718519494812,-500.0,0.00023561,3]
[329635570,1718519494829,-500.0,0.00023561,3]
[329635571,1718519494849,-500.0,0.00023561,3]
[329635572,1718519494863,-500.0,0.00023561,3]
[329635573,1718519494886,-500.0,0.00023561,3]
[329635574,1718519494906,-500.0,0.00023561,3]
[329635575,1718519494932,-558.88,0.00023561,3]
[329635576,1718519494962,-500.0,0.00023561,3]
[329635577,1718519494981,-695.39,0.00023561,3]
[329635578,1718519495003,-500.0,0.00023561,3]
[329635579,1718519495034,-500.0,0.00023561,3]
[329635580,1718519495066,-272.01057139,0.00023561,3]
[329635581,1718519495095,-500.0,0.00023561,3]
[329635582,1718519495109,-518.8,0.00023561,3]
[329635583,1718519495158,-500.0,0.00023561,3]
[329635584,1718519495207,-500.0,0.00023561,3]
[329635585,1718519495235,-500.0,0.00023561,3]
[329635586,1718519495249,-500.0,0.00023561,3]
[329635587,1718519495265,-500.0,0.00023561,3]
[329635588,1718519495279,-579.83,0.00023561,3]
[329635589,1718519495292,-500.0,0.00023561,3]
[329635590,1718519495329,-500.0,0.00023561,3]
[329635591,1718519495346,-500.0,0.00023561,3]
[329635592,1718519495357,-500.0,0.00023561,3]
[329635593,1718519495380,-500.0,0.00023561,3]
[329635594,1718519495392,-665.03,0.00023561,3]
[329635595,1718519495408,-500.0,0.00023561,3]
[329635596,1718519495422,-500.0,0.00023561,3]
[329635597,1718519495443,-500.0,0.00023561,3]
[329635598,1718519495464,-500.0,0.00023561,3]
[329635599,1718519495480,-500.0,0.00023561,3]
[329635600,1718519495497,-500.0,0.00023561,3]
[329635601,1718519495509,-500.0,0.00023561,3]
[329635602,1718519495529,-538.51,0.00023561,3]
[329635603,1718519495552,-500.0,0.00023561,3]
[329635604,1718519495563,-577.03,0.00023561,3]
[329635605,1718519495577,-500.0,0.00023561,3]
[329635606,1718519495592,-500.0,0.00023561,3]
[329635607,1718519495633,-500.0,0.00023561,3]
[329635608,1718519495665,-618.93,0.00023561,3]
[329635609,1718519495679,-500.0,0.00023561,3]
[329635610,1718519495724,-689.97,0.00023561,3]
[329635611,1718519495735,-500.0,0.00023561,3]
[329635612,1718519495750,-500.0,0.00023561,3]
[329635613,1718519495769,-500.0,0.00023561,3]
[329635614,1718519495796,-500.0,0.00023561,3]
[329635615,1718519495817,-500.0,0.00023561,3]
[329635616,1718519495830,-732.2,0.00023561,3]
[329635617,1718519495844,-500.0,0.00023561,3]
[329635618,1718519495863,-500.0,0.00023561,3]
[329635619,1718519495875,-500.0,0.00023561,3]
[329635620,1718519495897,-500.0,0.00023561,3]
[329635621,1718519495910,-500.0,0.00023561,3]
[329635622,1718519495960,-500.0,0.00023561,3]
[329635623,1718519495972,-528.47,0.00023561,3]
[329635624,1718519495983,-500.0,0.00023561,3]
[329635625,1718519496012,-500.0,0.00023561,3]
[329635626,1718519496027,-500.0,0.00023561,3]
[329635627,1718519496042,-523.56,0.00023561,3]
[329635628,1718519496054,-500.0,0.00023561,3]
[329635629,1718519496066,-500.0,0.00023561,3]
[329635630,1718519496078,-784.49,0.00023561,3]
[329635631,1718519496359,-500.0,0.00023561,3]
[329635632,1718519496375,-500.0,0.00023561,3]
[329635633,1718519496387,-500.0,0.00023561,3]
[329635634,1718519496402,-500.0,0.00023561,3]
[329635635,1718519496414,-500.0,0.00023561,3]
[329635636,1718519496425,-500.0,0.00023561,3]
[329635637,1718519496440,-1409.82,0.00023561,3]
[329635638,1718519496451,-628.68,0.00023561,3]
[329635639,1718519496466,-208.85,0.00023561,3]
[329635640,1718519496481,-500.0,0.00023561,3]
[329635641,1718519496497,-500.0,0.00023561,3]
[329635642,1718519496515,-500.0,0.00023561,3]
[329635643,1718519496536,-500.0,0.00023561,3]
[329635644,1718519496552,-500.0,0.00023561,3]
[329635645,1718519496565,-644.15,0.00023561,3]
[329635646,1718519496588,-500.0,0.00023561,3]
[329635647,1718519496620,-500.0,0.00023561,3]
[329635648,1718519496649,-1318.25,0.00023561,3]
[329635649,1718519496666,-500.0,0.00023561,3]
[329635650,1718519496679,-500.0,0.00023561,3]
[329635651,1718519496698,-500.0,0.00023561,3]
[329635652,1718519496717,-500.0,0.00023561,3]
[329635653,1718519496732,-500.0,0.00023561,3]
[329635654,1718519496747,-500.0,0.00023561,3]
[329635655,1718519496769,-827.33,0.00023561,3]
[329635656,1718519496787,-526.71,0.00023561,3]
[329635657,1718519496799,-500.0,0.00023561,3]
[329635658,1718519496821,-500.0,0.00023561,3]
[329635659,1718519496834,-500.0,0.00023561,3]
[329635660,1718519496872,-500.0,0.00023561,3]
[329635661,1718519496885,-500.0,0.00023561,3]
[329635662,1718519496897,-500.0,0.00023561,3]
[329635663,1718519496917,-458.33488022,0.00023561,3]
[329635664,1718519496930,-301.39334483,0.00023561,3]
[329635665,1718519496961,-500.0,0.00023561,3]
[329635666,1718519496981,-500.0,0.00023561,3]
[329635667,1718519497003,-500.0,0.00023561,3]
[329635668,1718519497037,-666.89,0.00023561,3]
[329635669,1718519497066,-528.0,0.00023561,3]
[329635670,1718519497096,-500.0,0.00023561,3]
[329635671,1718519497116,-500.0,0.00023561,3]
[329635672,1718519497128,-572.8,0.00023561,3]
[329635673,1718519497143,-6771.39,0.00023561,3]
[329635674,1718519497163,-2751.09,0.00023561,3]
[329635675,1718519497183,-500.0,0.00023561,3]
[329635676,1718519497201,-556.12,0.00023561,3]
[329635677,1718519497213,-500.0,0.00023561,3]
[329635678,1718519497241,-500.318703,0.00023561,3]
[329635679,1718519497263,-500.0,0.00023561,3]
[329635680,1718519497275,-500.318703,0.00023561,3]
[329635681,1718519497302,-4111.44,0.00023561,3]
[329635682,1718519497320,-500.0,0.00023561,3]
[329635683,1718519497333,-517.38,0.00023561,3]
[329635684,1718519497351,-500.0,0.00023561,3]
[329635685,1718519497363,-1089.23,0.00023561,3]
[329635686,1718519497378,-500.0,0.00023561,3]
[329635687,1718519497391,-752.44,0.00023561,3]
[329635688,1718519497403,-732.83,0.00023561,3]
[329635689,1718519497430,-500.0,0.00023561,3]
[329635690,1718519497447,-500.0,0.00023561,3]
[329635691,1718519497459,-598.68,0.00023561,3]
[329635692,1718519497472,-16567.34,0.00023561,3]
[329635693,1718519497485,-5825.82,0.00023561,3]
[329635694,1718519497503,-500.0,0.00023561,3]
[329635695,1718519497547,-896.52,0.00023561,3]
[329635696,1718519497560,-500.0,0.00023561,3]
[329635697,1718519497595,-923.48,0.00023561,3]
[329635698,1718519497608,-565.58,0.00023561,3]
[329635699,1718519497624,-16140.01,0.00023561,3]
[329635700,1718519497651,-500.0,0.00023561,3]
[329635701,1718519497663,-867.54,0.00023561,3]
[329635702,1718519497681,-500.0,0.00023561,3]
[329635703,1718519497694,-720.86,0.00023561,3]
[329635704,1718519497708,-500.0,0.00023561,3]
[329635705,1718519497720,-1400.95,0.00023561,3]
[329635706,1718519497734,-883.04,0.00023561,3]
[329635707,1718519497749,-788.31,0.00023561,3]
[329635708,1718519497764,-614.72,0.00023561,3]
[329635709,1718519497779,-1333.44,0.00023561,3]
[329635710,1718519497799,-636.64,0.00023561,3]
[329635711,1718519497811,-1108.65,0.00023561,3]
[329635712,1718519497826,-1571.99,0.00023561,3]
[329635713,1718519497865,-1584.23,0.00023561,3]
[329635714,1718519497880,-4835.69,0.00023561,3]
[329635715,1718519497907,-500.0,0.00023561,3]
[329635716,1718519497926,-675.02,0.00023561,3]
[329635717,1718519497957,-1506.09,0.00023561,3]
[329635718,1718519497996,-547.67,0.00023561,3]
[329635719,1718519498024,-500.0,0.00023561,3]
[329635720,1718519498038,-500.0,0.00023561,3]
[329635721,1718519498073,-2665.25,0.00023561,3]
[329635722,1718519498086,-520.47639353,0.00023561,3]
[329635723,1718519498102,-500.0,0.00023561,3]
[329635724,1718519498121,-500.58,0.00023561,3]
[329635725,1718519498133,-768.07,0.00023561,3]
[329635726,1718519498145,-2906.49,0.00023561,3]
[329635727,1718519498162,-551.95,0.00023561,3]
[329635728,1718519498176,-1245.63,0.00023561,3]
[329635729,1718519498187,-500.0,0.00023561,3]
[329635730,1718519498202,-679.0,0.00023561,3]
[329635731,1718519498236,-500.0,0.00023561,3]
[329635732,1718519498257,-954.41,0.00023561,3]
[329635733,1718519498275,-500.0,0.00023561,3]
[329635734,1718519498298,-500.0,0.00023561,3]
[329635735,1718519498317,-500.0,0.00023561,3]
[329635736,1718519498345,-998.69,0.00023561,3]
[329635737,1718519498364,-500.0,0.00023561,3]
[329635738,1718519498388,-500.0,0.00023561,3]
[329635739,1718519498424,-526.53,0.00023561,3]
[329635740,1718519498438,-500.0,0.00023561,3]
[329635741,1718519498463,-574.1,0.00023561,3]
[329635742,1718519498474,-500.0,0.00023561,3]
[329635743,1718519498486,-1602.8,0.00023561,3]
[329635744,1718519498498,-500.0,0.00023561,3]
[329635745,1718519498536,-500.0,0.00023561,3]
[329635746,1718519498573,-1254.36,0.00023561,3]
[329635747,1718519498605,-1766.79,0.00023561,3]
[329635748,1718519498619,-622.71,0.00023561,3]
[329635749,1718519498633,-500.0,0.00023561,3]
[329635750,1718519498657,-1978.99,0.00023561,3]
[329635751,1718519498701,-1271.11,0.00023561,3]
[329635752,1718519498736,-897.11,0.00023561,3]
[329635753,1718519498753,-673.16,0.00023561,3]
[329635754,1718519498807,-1458.59,0.00023561,3]
[329635755,1718519498820,-500.0,0.00023561,3]
[329635756,1718519498848,-500.0,0.00023561,3]
[329635757,1718519498865,-500.0,0.00023561,3]
[329635758,1718519498877,-503.26,0.00023561,3]
[329635759,1718519498892,-1882.15,0.00023561,3]
[329635760,1718519498905,-900.94,0.00023561,3]
[329635761,1718519498917,-6355.77,0.00023561,3]
[329635762,1718519498929,-797.28,0.00023561,3]
[329635763,1718519498973,-500.0,0.00023561,3]
[329635764,1718519498985,-500.0,0.00023561,3]
[329635765,1718519498996,-500.0,0.00023561,3]
[329635766,1718519499009,-774.66,0.00023561,3]
[329635767,1718519499024,-749.71,0.00023561,3]
[329635768,1718519499043,-564.43,0.00023561,3]
[329635769,1718519499074,-500.0,0.00023561,3]
[329635770,1718519499096,-1539.73,0.00023561,3]
[329635771,1718519499120,-500.0,0.00023561,3]
[329635772,1718519499131,-500.0,0.00023561,3]
[329635773,1718519499142,-3132.14,0.00023561,3]
[329635774,1718519499153,-500.0,0.00023561,3]
[329635775,1718519499164,-500.0,0.00023561,3]
[329635776,1718519499182,-500.0,0.00023561,3]
[329635777,1718519499209,-500.0,0.00023561,3]
[329635778,1718519499229,-1719.13,0.00023561,3]
[329635779,1718519499256,-500.0,0.00023561,3]
[329635780,1718519499273,-500.0,0.00023561,3]
[329635781,1718519499292,-500.0,0.00023561,3]
[329635782,1718519499320,-877.15,0.00023561,3]
[329635783,1718519499344,-638.19,0.00023561,3]
[329635784,1718519499360,-500.0,0.00023561,3]
[329635785,1718519499378,-507.88,0.00023561,3]
[329635786,1718519499397,-1256.01,0.00023561,3]
[329635787,1718519499410,-1319.04,0.00023561,3]
[329635788,1718519499423,-831.44,0.00023561,3]
[329635789,1718519499454,-428.165,0.00023561,3]
[329635790,1718519499470,-1880.82,0.00023561,3]
[329635791,1718519499494,-889.01,0.00023561,3]
[329635792,1718519499524,-500.0,0.00023561,3]
[329635793,1718519499536,-839.73,0.00023561,3]
[329635794,1718519499564,-1019.43,0.00023561,3]
[329635795,1718519499604,-500.0,0.00023561,3]
[329635796,1718519499626,-876.34,0.00023561,3]
[329635797,1718519499664,-1263.54,0.00023561,3]
[329635798,1718519499679,-1051.98,0.00023561,3]
[329635799,1718519499692,-500.0,0.00023561,3]
[329635800,1718519499724,-868.27,0.00023561,3]
[329635801,1718519499740,-500.0,0.00023561,3]
[329635802,1718519499800,-500.0,0.00023561,3]
[329635803,1718519499815,-1623.39,0.00023561,3]
[329635804,1718519499847,-970.73,0.00023561,3]
[329635805,1718519499869,-898.14,0.00023561,3]
[329635806,1718519499916,-500.0,0.00023561,3]
[329635807,1718519499931,-826.07,0.00023561,3]
[329635808,1718519499968,-500.0,0.00023561,3]
[329635809,1718519499985,-882.22,0.00023561,3]
[329635810,1718519500025,-854.76,0.00023561,3]
[329635811,1718519500044,-1419.04,0.00023561,3]
[329635812,1718519500055,-1666.34,0.00023561,3]
[329635813,1718519500078,-938.36,0.00023561,3]
[329635814,1718519500101,-535.88,0.00023561,3]
[329635815,1718519500116,-771.1,0.00023561,3]
[329635816,1718519500135,-500.0,0.00023561,3]
[329635817,1718519500148,-546.14,0.00023561,3]
[329635818,1718519500169,-500.0,0.00023561,3]
[329635819,1718519500182,-177.95,0.00023561,3]
[329635820,1718519500197,-637.63,0.00023561,3]
[329635821,1718519500210,-500.0,0.00023561,3]
[329635822,1718519500223,-534.11,0.00023561,3]
[329635823,1718519500269,-500.0,0.00023561,3]
[329635824,1718519500314,-1079.11,0.00023561,3]
[329635825,1718519500341,-990.93,0.00023561,3]
[329635826,1718519500372,-500.0,0.00023561,3]
[329635827,1718519500388,-733.88,0.00023561,3]
[329635828,1718519500414,-500.0,0.00023561,3]
[329635829,1718519500437,-500.0,0.00023561,3]
[329635830,1718519500485,-500.0,0.00023561,3]
[329635831,1718519500518,-592.82,0.00023561,3]
[329635832,1718519500533,-500.0,0.00023561,3]
[329635833,1718519500551,-2735.16,0.00023561,3]
[329635834,1718519500584,-599.16,0.00023561,3]
[329635835,1718519500621,-631.36,0.00023561,3]
[329635836,1718519500640,-505.74,0.00023561,3]
[329635837,1718519500654,-609.47,0.00023561,3]
[329635838,1718519500665,-707.73,0.00023561,3]
[329635839,1718519500677,-500.0,0.00023561,3]
[329635840,1718519500689,-296.2601255,0.00023565,2]
[329635841,1718519500702,-200.0,0.0002357,2]
[329635842,1718519500716,-500.0,0.0002357,2]
[329635843,1718519500733,-200.0,0.0002357,2]
[329635844,1718519500754,-152.19673152,0.00023592,2]
[329635845,1718519500776,-308.99966582,0.00023601,2]
[329635846,1718519500795,-296.2601255,0.00023601,2]
[329635847,1718519500861,-296.2601255,0.00023605,2]
[329635848,1718519500901,-668.41653961,0.00023611,2]
[329635849,1718519500936,-153.93564257,0.00023613,2]
[329635850,1718519500963,-308.99966582,0.00023642,2]
[329635851,1718519500987,-154.01467209,0.00023644,2]
[329635852,1718519501006,-150.75,0.00023671,2]
[329635853,1718519501024,-150.0,0.00023671,2]
[329635854,1718519501045,-150.0,0.00023671,2]
[329635855,1718519501060,-154.01467209,0.00023679,2]
[329635856,1718519501095,-152.28834751,0.00023681,2]
[329635857,1718519501126,-668.41653961,0.00023686,2]
[329635858,1718519501156,-403.22,0.00023699,3]
[329635859,1718519501176,-5080.86,0.000237,2]
[329635860,1718519501208,-296.2601255,0.00023703,2]
[329635861,1718519501220,-154.01467209,0.00023714,2]
[329635862,1718519501267,-152.0,0.0002373,4]
[329635863,1718519501286,-324.0,0.0002374,2]
[329635864,1718519501304,-208.0,0.0002374,2]
[329635865,1718519501324,-572.85988994,0.00023774,2]
[329635866,1718519501360,-668.41653961,0.00023781,2]
[329635867,1718519501374,-308.99966582,0.00023781,2]
[329635868,1718519501388,-153.93564257,0.00023788,2]
[329635869,1718519501417,-572.85988994,0.00023788,2]
[329635870,1718519501446,-155.35794234,0.000238,2]
[329635871,1718519501500,-668.41653961,0.00023803,2]
[329635872,1718519501520,-500.0,0.00023835,3]
[329635873,1718519501552,-500.0,0.00023835,3]
[329635874,1718519501567,-500.0,0.00023835,3]
[329635875,1718519501591,-500.0,0.00023835,3]
[329635876,1718519501675,-500.0,0.00023835,3]
[329635877,1718519501701,-500.0,0.00023835,3]
[329635878,1718519501719,-500.0,0.00023835,3]
[329635879,1718519501732,-500.0,0.00023835,3]
[329635880,1718519501750,-500.0,0.00023835,3]
[329635881,1718519501766,-500.0,0.00023835,3]
[329635882,1718519501782,-500.0,0.00023835,3]
[329635883,1718519501801,-519.58,0.00023835,3]
[329635884,1718519501813,-500.0,0.00023835,3]
[329635885,1718519501827,-500.0,0.00023835,3]
[329635886,1718519501847,-287.00951581,0.00023835,3]
[329635887,1718519501864,-500.0,0.00023835,3]
[329635888,1718519501875,-500.0,0.00023835,3]
[329635889,1718519501905,-500.0,0.00023835,3]
[329635890,1718519501918,-500.0,0.00023835,3]
[329635891,1718519501930,-500.0,0.00023835,3]
[329635892,1718519501951,-500.0,0.00023835,3]
[329635893,1718519501968,-500.0,0.00023835,3]
[329635894,1718519501984,-500.0,0.00023835,3]
[329635895,1718519501996,-500.0,0.00023835,3]
[329635896,1718519502019,-500.0,0.00023835,3]
[329635897,1718519502068,-521.4,0.00023835,3]
[329635898,1718519502092,-500.0,0.00023835,3]
[329635899,1718519502129,-500.0,0.00023835,3]
[329635900,1718519502146,-500.0,0.00023835,3]
[329635901,1718519502159,-881.45,0.00023835,3]
[329635902,1718519502174,-500.0,0.00023835,3]
[329635903,1718519502186,-500.0,0.00023835,3]
[329635904,1718519502222,-500.0,0.00023835,3]
[329635905,1718519502272,-500.0,0.00023835,3]
[329635906,1718519502298,-500.0,0.00023835,3]
[329635907,1718519502314,-500.0,0.00023835,3]
[329635908,1718519502342,-517.49,0.00023835,3]
[329635909,1718519502364,-500.0,0.00023835,3]
[329635910,1718519502409,-517.12,0.00023835,3]
[329635911,1718519502421,-500.0,0.00023835,3]
[329635912,1718519502432,-500.0,0.00023835,3]
[329635913,1718519502443,-500.0,0.00023835,3]
[329635914,1718519502456,-500.0,0.00023835,3]
[329635915,1718519502468,-500.0,0.00023835,3]
[329635916,1718519502482,-500.0,0.00023835,3]
[329635917,1718519502507,-500.0,0.00023835,3]
[329635918,1718519502519,-500.0,0.00023835,3]
[329635919,1718519502534,-558.88,0.00023835,3]
[329635920,1718519502553,-500.0,0.00023835,3]
[329635921,1718519502568,-695.39,0.00023835,3]
[329635922,1718519502580,-500.0,0.00023835,3]
[329635923,1718519502595,-500.0,0.00023835,3]
[329635924,1718519502607,-500.0,0.00023835,3]
[329635925,1718519502619,-518.8,0.00023835,3]
[329635926,1718519502633,-500.0,0.00023835,3]
[329635927,1718519502648,-500.0,0.00023835,3]
[329635928,1718519502661,-646.97485878,0.00023835,3]
[329635929,1718519502677,-500.0,0.00023835,3]
[329635930,1718519502689,-500.0,0.00023835,3]
[329635931,1718519502702,-579.83,0.00023835,3]
[329635932,1718519502714,-500.0,0.00023835,3]
[329635933,1718519502725,-500.0,0.00023835,3]
[329635934,1718519502738,-500.0,0.00023835,3]
[329635935,1718519502752,-500.0,0.00023835,3]
[329635936,1718519502765,-500.0,0.00023835,3]
[329635937,1718519502776,-665.03,0.00023835,3]
[329635938,1718519502790,-500.0,0.00023835,3]
[329635939,1718519502802,-500.0,0.00023835,3]
[329635940,1718519502815,-500.0,0.00023835,3]
[329635941,1718519502826,-500.0,0.00023835,3]
[329635942,1718519502838,-500.0,0.00023835,3]
[329635943,1718519502850,-500.0,0.00023835,3]
[329635944,1718519502867,-500.0,0.00023835,3]
[329635945,1718519502884,-538.51,0.00023835,3]
[329635946,1718519502908,-500.0,0.00023835,3]
[329635947,1718519502920,-577.03,0.00023835,3]
[329635948,1718519502952,-500.0,0.00023835,3]
[329635949,1718519502984,-500.0,0.00023835,3]
[329635950,1718519503001,-500.0,0.00023835,3]
[329635951,1718519503012,-618.93,0.00023835,3]
[329635952,1718519503026,-500.0,0.00023835,3]
[329635953,1718519503045,-689.97,0.00023835,3]
[329635954,1718519503062,-500.0,0.00023835,3]
[329635955,1718519503106,-500.0,0.00023835,3]
[329635956,1718519503122,-500.0,0.00023835,3]
[329635957,1718519503147,-500.0,0.00023835,3]
[329635958,1718519503188,-500.0,0.00023835,3]
[329635959,1718519503252,-732.2,0.00023835,3]
[329635960,1718519503293,-194.69617816,0.00023835,3]
[329635961,1718519503316,-500.0,0.00023835,3]
[329635962,1718519503328,-500.0,0.00023835,3]
[329635963,1718519503346,-500.0,0.00023835,3]
[329635964,1718519503371,-500.0,0.00023835,3]
[329635965,1718519503397,-528.47,0.00023835,3]
[329635966,1718519503408,-500.0,0.00023835,3]
[329635967,1718519503424,-500.0,0.00023835,3]
[329635968,1718519503442,-500.0,0.00023835,3]
[329635969,1718519503457,-384.00099983,0.00023835,3]
[329635970,1718519503468,-523.56,0.00023835,3]
[329635971,1718519503479,-500.0,0.00023835,3]
[329635972,1718519503493,-500.0,0.00023835,3]
[329635973,1718519503510,-784.49,0.00023835,3]
[329635974,1718519503529,-500.0,0.00023835,3]
[329635975,1718519503554,-500.0,0.00023835,3]
[329635976,1718519503581,-500.0,0.00023835,3]
[329635977,1718519503626,-500.0,0.00023835,3]
[329635978,1718519503646,-500.0,0.00023835,3]
[329635979,1718519503660,-500.0,0.00023835,3]
[329635980,1718519503675,-1409.82,0.00023835,3]
[329635981,1718519503686,-628.68,0.00023835,3]
[329635982,1718519503708,-208.85,0.00023835,3]
[329635983,1718519503736,-500.0,0.00023835,3]
[329635984,1718519503750,-500.0,0.00023835,3]
[329635985,1718519503761,-500.0,0.00023835,3]
[329635986,1718519503773,-500.0,0.00023835,3]
[329635987,1718519503784,-500.0,0.00023835,3]
[329635988,1718519503803,-644.15,0.00023835,3]
[329635989,1718519503828,-500.0,0.00023835,3]
[329635990,1718519503857,-500.0,0.00023835,3]
[329635991,1718519503874,-1318.25,0.00023835,3]
[329635992,1718519503898,-500.0,0.00023835,3]
[329635993,1718519503940,-500.0,0.00023835,3]
[329635994,1718519503960,-500.0,0.00023835,3]
[329635995,1718519503985,-500.0,0.00023835,3]
[329635996,1718519504013,-500.0,0.00023835,3]
[329635997,1718519504024,-500.0,0.00023835,3]
[329635998,1718519504060,-827.33,0.00023835,3]
[329635999,1718519504074,-526.71,0.00023835,3]
[329636000,1718519504089,-500.0,0.00023835,3]
[329636001,1718519504109,-500.0,0.00023835,3]
[329636002,1718519504129,-500.0,0.00023835,3]
[329636003,1718519504144,-500.0,0.00023835,3]
[329636004,1718519504176,-500.0,0.00023835,3]
[329636005,1718519504203,-500.0,0.00023835,3]
[329636006,1718519504221,-500.0,0.00023835,3]
[329636007,1718519504272,-500.0,0.00023835,3]
[329636008,1718519504314,-500.0,0.00023835,3]
[329636009,1718519504383,-666.89,0.00023835,3]
[329636010,1718519504416,-528.0,0.00023835,3]
[329636011,1718519504428,-500.0,0.00023835,3]
[329636012,1718519504439,-500.0,0.00023835,3]
[329636013,1718519504464,-572.8,0.00023835,3]
[329636014,1718519504489,-6771.39,0.00023835,3]
[329636015,1718519504504,-2751.09,0.00023835,3]
[329636016,1718519504530,-500.0,0.00023835,3]
[329636017,1718519504562,-556.12,0.00023835,3]
[329636018,1718519504573,-500.0,0.00023835,3]
[329636019,1718519504584,-500.318703,0.00023835,3]
[329636020,1718519504599,-500.0,0.00023835,3]
[329636021,1718519504611,-500.318703,0.00023835,3]
[329636022,1718519504641,-4111.44,0.00023835,3]
[329636023,1718519504681,-500.0,0.00023835,3]
[329636024,1718519504701,-517.38,0.00023835,3]
[329636025,1718519504714,-500.0,0.00023835,3]
[329636026,1718519504731,-1089.23,0.00023835,3]
[329636027,1718519504754,-500.0,0.00023835,3]
[329636028,1718519504814,-752.44,0.00023835,3]
[329636029,1718519504880,-732.83,0.00023835,3]
[329636030,1718519504893,-500.0,0.00023835,3]
[329636031,1718519504909,-500.0,0.00023835,3]
[329636032,1718519504923,-598.68,0.00023835,3]
[329636033,1718519504966,-16567.34,0.00023835,3]
[329636034,1718519504979,-5825.82,0.00023835,3]
[329636035,1718519504992,-500.0,0.00023835,3]
[329636036,1718519505007,-896.52,0.00023835,3]